fUSD/lending_fUSD_20250618
["ID","MTS","AMOUNT","RATE_DAILY","PERIOD"]
[366438715,1750255847661,-490.0,0.00016438,2]
[366438717,1750255847670,-771.02,0.00016438,2]
[366438719,1750255847679,-440.87753446,0.00016438,2]
[366438721,1750255847689,-490.0,0.00016438,2]
[366438723,1750255847699,-523.15,0.00016438,2]
[366438725,1750255847708,-594.14,0.00016438,2]
[366438727,1750255847717,-490.0,0.00016438,2]
[366438729,1750255847727,-290.72905091,0.00016438,2]
[366438731,1750255847736,-606.56,0.00016438,2]
[366438733,1750255847745,-490.0,0.00016438,2]
[366438735,1750255847755,-500.0,0.00016438,2]
[366438737,1750255847764,-500.0,0.00016438,2]
[366438738,1750255847774,-500.0,0.00016438,2]
[366438740,1750255847783,-500.0,0.00016438,2]
[366438742,1750255847793,-512.0,0.00016438,2]
[366438744,1750255847802,-490.0,0.00016438,2]
[366438746,1750255847812,-490.0,0.00016438,2]
[366438748,1750255847821,-641.58,0.00016438,2]
[366438750,1750255847831,-490.0,0.00016438,2]
[366438752,1750255847841,-538.31,0.00016438,2]
[366438754,1750255847850,-490.0,0.00016438,2]
[366438756,1750255847859,-1484.62,0.00016438,2]
[366438758,1750255847869,-813.88,0.00016438,2]
[366438760,1750255847878,-490.0,0.00016438,2]
[366438762,1750255847888,-490.0,0.00016438,2]
[366438765,1750255847897,-490.0,0.00016438,2]
[366438766,1750255847907,-490.0,0.00016438,2]
[366438768,1750255847916,-708.74,0.00016438,2]
[366438771,1750255847925,-490.0,0.00016438,2]
[366438773,1750255847935,-490.0,0.00016438,2]
[366438775,1750255847944,-895.74,0.00016438,2]
[366438777,1750255847954,-490.0,0.00016438,2]
[366438779,1750255847963,-490.0,0.00016438,2]
[366438781,1750255847972,-490.0,0.00016438,2]
[366438783,1750255847981,-490.0,0.00016438,2]
[366438785,1750255847992,-490.0,0.00016438,2]
[366438787,1750255848001,-490.0,0.00016438,2]
[366438789,1750255848011,-490.0,0.00016438,2]
[366438791,1750255848020,-1025.26,0.00016438,2]
[366438793,1750255848030,-490.0,0.00016438,2]
[366438795,1750255848046,-490.0,0.00016438,2]
[366438797,1750255848055,-711.81,0.00016438,2]
[366438799,1750255848065,-490.0,0.00016438,2]
[366438801,1750255848075,-436.208577,0.00016438,2]
[366438803,1750255848086,-490.0,0.00016438,2]
[366438805,1750255848096,-490.0,0.00016438,2]
[366438806,1750255848105,-490.0,0.00016438,2]
[366438809,1750255848115,-490.0,0.00016438,2]
[366438811,1750255848127,-490.0,0.00016438,2]
[366438813,1750255848137,-502.24,0.00016438,2]
[366438815,1750255848147,-578.25,0.00016438,2]
[366438817,1750255848156,-605.36,0.00016438,2]
[366438818,1750255848165,-490.0,0.00016438,2]
[366438820,1750255848177,-910.15,0.00016438,2]
[366438822,1750255848186,-789.37,0.00016438,2]
[366438824,1750255848196,-646.88,0.00016438,2]
[366438826,1750255848205,-490.0,0.00016438,2]
[366438828,1750255848214,-490.0,0.00016438,2]
[366438830,1750255848223,-490.0,0.00016438,2]
[366438832,1750255848233,-501.28,0.00016438,2]
[366438834,1750255848242,-490.0,0.00016438,2]
[366438836,1750255848252,-490.0,0.00016438,2]
[366438838,1750255848262,-998.86,0.00016438,2]
[366438840,1750255848271,-1504.2,0.00016438,2]
[366438842,1750255848282,-490.0,0.00016438,2]
[366438844,1750255848292,-596.43,0.00016438,2]
[366438846,1750255848302,-594.51,0.00016438,2]
[366438848,1750255848312,-979.55,0.00016438,2]
[366438850,1750255848321,-490.0,0.00016438,2]
[366438852,1750255848331,-548.82072687,0.00016438,2]
[366438854,1750255848341,-490.0,0.00016438,2]
[366438856,1750255848351,-300.0,0.00016438,2]
[366438858,1750255848361,-490.0,0.00016438,2]
[366438860,1750255848371,-490.0,0.00016438,2]
[366438862,1750255848381,-531.96,0.00016438,2]
[366438864,1750255848391,-978.09,0.00016438,2]
[366438866,1750255848400,-490.0,0.00016438,2]
[366438868,1750255848410,-1308.98,0.00016438,2]
[366438871,1750255848420,-1003.12,0.00016438,2]
[366438873,1750255848430,-490.0,0.00016438,2]
[366438874,1750255848439,-490.0,0.00016438,2]
[366438876,1750255848449,-1004.31,0.00016438,2]
[366438878,1750255848459,-1282.55,0.00016438,2]
[366438880,1750255848468,-494.74,0.00016438,2]
[366438882,1750255848478,-772.75,0.00016438,2]
[366438883,1750255848489,-496.63,0.00016438,2]
[366438884,1750255848499,-490.0,0.00016438,2]
[366438885,1750255848508,-490.0,0.00016438,2]
[366438886,1750255848518,-494.11733257,0.00016438,2]
[366438887,1750255848530,-490.0,0.00016438,2]
[366438888,1750255848540,-490.0,0.00016438,2]
[366438889,1750255848549,-490.0,0.00016438,2]
[366438890,1750255848559,-1129.45,0.00016438,2]
[366438891,1750255848569,-490.0,0.00016438,2]
[366438892,1750255848579,-490.0,0.00016438,2]
[366438893,1750255848589,-554.16,0.00016438,2]
[366438894,1750255848599,-498.1745195,0.00016438,2]
[366438895,1750255848609,-614.16,0.00016438,2]
[366438896,1750255848618,-490.0,0.00016438,2]
[366438897,1750255848628,-680.92,0.00016438,2]
[366438898,1750255848638,-490.0,0.00016438,2]
[366438899,1750255848648,-694.67,0.00016438,2]
[366438900,1750255848659,-1137.74,0.00016438,2]
[366438902,1750255848669,-625.02,0.00016438,2]
[366438904,1750255848679,-699.66,0.00016438,2]
[366438905,1750255848689,-490.0,0.00016438,2]
[366438906,1750255848699,-490.0,0.00016438,2]
[366438907,1750255848709,-490.0,0.00016438,2]
[366438908,1750255848718,-563.14,0.00016438,2]
[366438909,1750255848729,-490.0,0.00016438,2]
[366438910,1750255848739,-519.78,0.00016438,2]
[366438911,1750255848749,-788.96,0.00016438,2]
[366438912,1750255848759,-1121.69,0.00016438,2]
[366438913,1750255848769,-1224.44,0.00016438,2]
[366438914,1750255848781,-662.47,0.00016438,2]
[366438915,1750255848791,-490.0,0.00016438,2]
[366438916,1750255848801,-520.85,0.00016438,2]
[366438917,1750255848811,-490.0,0.00016438,2]
[366438918,1750255848822,-490.0,0.00016438,2]
[366438919,1750255848833,-500.0,0.00016438,2]
[366438920,1750255848843,-500.0,0.00016438,2]
[366438921,1750255848854,-500.0,0.00016438,2]
[366438923,1750255848864,-500.0,0.00016438,2]
[366438925,1750255848874,-500.0,0.00016438,2]
[366438927,1750255848884,-500.0,0.00016438,2]
[366438929,1750255848895,-287.31,0.00016438,2]
[366438931,1750255848905,-490.0,0.00016438,2]
[366438933,1750255848916,-548.48,0.00016438,2]
[366438935,1750255848926,-490.0,0.00016438,2]
[366438937,1750255848937,-548.48,0.00016438,2]
[366438938,1750255848948,-490.0,0.00016438,2]
[366438939,1750255848958,-548.48,0.00016438,2]
[366438941,1750255848969,-377.86633215,0.00016438,2]
[366438943,1750255848979,-490.0,0.00016438,2]
[366438944,1750255848989,-548.48,0.00016438,2]
[366438945,1750255849001,-548.48,0.00016438,2]
[366438946,1750255849011,-548.48,0.00016438,2]
[366438947,1750255849021,-1276.33,0.00016438,2]
[366438948,1750255849036,-490.0,0.00016438,2]
[366438949,1750255849051,-493.58,0.00016438,2]
[366438950,1750255849065,-490.0,0.00016438,2]
[366438951,1750255849076,-490.0,0.00016438,2]
[366438952,1750255849085,-490.0,0.00016438,2]
[366438953,1750255849097,-490.0,0.00016438,2]
[366438954,1750255849106,-497.64,0.00016438,2]
[366438955,1750255849116,-490.0,0.00016438,2]
[366438956,1750255849127,-490.0,0.00016438,2]
[366438957,1750255849138,-490.0,0.00016438,2]
[366438958,1750255849148,-490.0,0.00016438,2]
[366438959,1750255849158,-492.84,0.00016438,2]
[366438960,1750255849167,-646.93,0.00016438,2]
[366438961,1750255849177,-1479.86,0.00016438,2]
[366438962,1750255849186,-490.0,0.00016438,2]
[366438963,1750255849196,-490.0,0.00016438,2]
[366438964,1750255849205,-1266.75,0.00016438,2]
[366438965,1750255849214,-490.0,0.00016438,2]
[366438966,1750255849223,-540.1,0.00016438,2]
[366438967,1750255849233,-490.0,0.00016438,2]
[366438968,1750255849242,-490.0,0.00016438,2]
[366438969,1750255849252,-490.0,0.00016438,2]
[366438970,1750255849263,-490.0,0.00016438,2]
[366438971,1750255849272,-490.0,0.00016438,2]
[366438972,1750255849284,-490.0,0.00016438,2]
[366438973,1750255849294,-490.0,0.00016438,2]
[366438974,1750255849304,-907.49,0.00016438,2]
[366438975,1750255849314,-524.89,0.00016438,2]
[366438976,1750255849324,-1113.83,0.00016438,2]
[366438977,1750255849333,-745.76,0.00016438,2]
[366438978,1750255849344,-490.0,0.00016438,2]
[366438979,1750255849354,-531.65,0.00016438,2]
[366438980,1750255849364,-742.22,0.00016438,2]
[366438981,1750255849374,-490.0,0.00016438,2]
[366438982,1750255849384,-793.01,0.00016438,2]
[366438983,1750255849393,-490.0,0.00016438,2]
[366438984,1750255849403,-490.0,0.00016438,2]
[366438985,1750255849413,-1843.83,0.00016438,2]
[366438986,1750255849422,-490.0,0.00016438,2]
[366438987,1750255849432,-490.0,0.00016438,2]
[366438988,1750255849441,-578.42,0.00016438,2]
[366438989,1750255849450,-599.96,0.00016438,2]
[366438990,1750255849461,-490.0,0.00016438,2]
[366438991,1750255849470,-1166.2,0.00016438,2]
[366438992,1750255849480,-490.0,0.00016438,2]
[366438993,1750255849490,-490.0,0.00016438,2]
[366438994,1750255849500,-1353.95,0.00016438,2]
[366438995,1750255849510,-490.0,0.00016438,2]
[366438996,1750255849520,-494.96482603,0.00016438,2]
[366438997,1750255849533,-678.93,0.00016438,2]
[366438998,1750255849542,-490.0,0.00016438,2]
[366438999,1750255849552,-1386.21,0.00016438,2]
[366439000,1750255849562,-490.0,0.00016438,2]
[366439001,1750255849572,-649.14,0.00016438,2]
[366439002,1750255849583,-490.0,0.00016438,2]
[366439003,1750255849593,-1528.34,0.00016438,2]
[366439004,1750255849603,-795.8,0.00016438,2]
[366439005,1750255849613,-490.0,0.00016438,2]
[366439006,1750255849623,-554.44,0.00016438,2]
[366439007,1750255849635,-490.0,0.00016438,2]
[366439008,1750255849645,-490.14,0.00016438,2]
[366439009,1750255849655,-1373.99,0.00016438,2]
[366439010,1750255849665,-2021.33,0.00016438,2]
[366439011,1750255849674,-490.0,0.00016438,2]
[366439012,1750255849685,-490.0,0.00016438,2]
[366439013,1750255849694,-682.58,0.00016438,2]
[366439014,1750255849704,-548.52,0.00016438,2]
[366439015,1750255849714,-490.0,0.00016438,2]
[366439016,1750255849723,-618.65,0.00016438,2]
[366439017,1750255849733,-1202.3,0.00016438,2]
[366439018,1750255849742,-490.0,0.00016438,2]
[366439019,1750255849752,-754.19,0.00016438,2]
[366439020,1750255849762,-490.0,0.00016438,2]
[366439021,1750255849771,-490.0,0.00016438,2]
[366439022,1750255849784,-1173.92,0.00016438,2]
[366439023,1750255849793,-536.63,0.00016438,2]
[366439024,1750255849803,-715.55,0.00016438,2]
[366439025,1750255849812,-490.0,0.00016438,2]
[366439026,1750255849822,-1156.28,0.00016438,2]
[366439027,1750255849831,-773.61,0.00016438,2]
[366439028,1750255849841,-490.0,0.00016438,2]
[366439029,1750255849850,-624.62,0.00016438,2]
[366439030,1750255849859,-644.75,0.00016438,2]
[366439031,1750255849869,-513.52,0.00016438,2]
[366439032,1750255849878,-492.39604357,0.00016438,2]
[366439033,1750255849889,-1382.19,0.00016438,2]
[366439034,1750255849898,-975.25,0.00016438,2]
[366439035,1750255849908,-490.0,0.00016438,2]
[366439036,1750255849917,-576.13,0.00016438,2]
[366439037,1750255849926,-490.0,0.00016438,2]
[366439038,1750255849936,-957.11,0.00016438,2]
[366439039,1750255849946,-500.0,0.00016438,2]
[366439040,1750255849955,-490.0,0.00016438,2]
[366439041,1750255849964,-500.0,0.00016438,2]
[366439042,1750255849974,-1089.3,0.00016438,2]
[366439043,1750255849984,-490.0,0.00016438,2]
[366439044,1750255849993,-490.0,0.00016438,2]
[366439045,1750255850002,-702.12,0.00016438,2]
[366439046,1750255850012,-490.0,0.00016438,2]
[366439047,1750255850021,-1209.76,0.00016438,2]
[366439048,1750255850034,-782.68,0.00016438,2]
[366439049,1750255850045,-490.0,0.00016438,2]
[366439050,1750255850056,-490.0,0.00016438,2]
[366439051,1750255850066,-566.72,0.00016438,2]
[366439052,1750255850076,-1310.13,0.00016438,2]
[366439053,1750255850087,-787.75,0.00016438,2]
[366439054,1750255850097,-490.0,0.00016438,2]
[366439055,1750255850108,-490.0,0.00016438,2]
[366439056,1750255850119,-490.0,0.00016438,2]
[366439057,1750255850131,-490.0,0.00016438,2]
[366439058,1750255850142,-490.0,0.00016438,2]
[366439059,1750255850152,-490.0,0.00016438,2]
[366439060,1750255850162,-609.05,0.00016438,2]
[366439061,1750255850173,-681.26,0.00016438,2]
[366439062,1750255850183,-490.0,0.00016438,2]
[366439063,1750255850193,-1778.61,0.00016438,2]
[366439064,1750255850204,-490.0,0.00016438,2]
[366439065,1750255850213,-1112.13,0.00016438,2]
[366439066,1750255850224,-383.8919308,0.00016438,2]
[366439067,1750255850235,-773.8,0.00016438,2]
[366439068,1750255850245,-850.56,0.00016438,2]
[366439069,1750255850255,-777.73,0.00016438,2]
[366439070,1750255850265,-490.0,0.00016438,2]
[366439071,1750255850275,-511.34,0.00016438,2]
[366439072,1750255850292,-490.0,0.00016438,2]
[366439073,1750255850304,-1124.75,0.00016438,2]
[366439074,1750255850315,-561.98,0.00016438,2]
[366439075,1750255850325,-695.55,0.00016438,2]
[366439076,1750255850337,-490.0,0.00016438,2]
[366439077,1750255850348,-723.24,0.00016438,2]
[366439078,1750255850359,-490.0,0.00016438,2]
[366439079,1750255850370,-1989.47,0.00016438,2]
[366439080,1750255850381,-569.27,0.00016438,2]
[366439081,1750255850393,-1505.92,0.00016438,2]
[366439082,1750255850404,-1080.78,0.00016438,2]
[366439083,1750255850416,-490.0,0.00016438,2]
[366439084,1750255850427,-821.68,0.00016438,2]
[366439085,1750255850438,-490.0,0.00016438,2]
[366439086,1750255850449,-493.18,0.00016438,2]
[366439087,1750255850460,-587.25,0.00016438,2]
[366439088,1750255850471,-888.5,0.00016438,2]
[366439089,1750255850482,-490.0,0.00016438,2]
[366439090,1750255850493,-490.0,0.00016438,2]
[366439091,1750255850504,-220.19524625,0.00016438,2]
[366439092,1750255850515,-490.0,0.00016438,2]
[366439093,1750255850526,-644.34,0.00016438,2]
[366439094,1750255850544,-490.0,0.00016438,2]
[366439095,1750255850555,-490.0,0.00016438,2]
[366439096,1750255850565,-1002.05,0.00016438,2]
[366439097,1750255850576,-490.0,0.00016438,2]
[366439098,1750255850587,-694.41,0.00016438,2]
[366439099,1750255850597,-438.25275823,0.00016438,2]
[366439100,1750255850607,-540.13,0.00016438,2]
[366439101,1750255850617,-2457.17,0.00016438,2]
[366439102,1750255850627,-490.0,0.00016438,2]
[366439103,1750255850638,-490.0,0.00016438,2]
[366439104,1750255850648,-492.89444601,0.00016438,2]
[366439105,1750255850659,-490.0,0.00016438,2]
[366439106,1750255850669,-490.0,0.00016438,2]
[366439107,1750255850680,-490.0,0.00016438,2]
[366439108,1750255850690,-490.0,0.00016438,2]
[366439109,1750255850700,-545.3,0.00016438,2]
[366439110,1750255850710,-490.0,0.00016438,2]
[366439111,1750255850721,-490.0,0.00016438,2]
[366439112,1750255850731,-490.0,0.00016438,2]
[366439113,1750255850741,-490.0,0.00016438,2]
[366439114,1750255850751,-490.0,0.00016438,2]
[366439115,1750255850760,-491.33760652,0.00016438,2]
[366439116,1750255850770,-878.19,0.00016438,2]
[366439117,1750255850781,-1041.03,0.00016438,2]
[366439118,1750255850791,-666.75,0.00016438,2]
[366439119,1750255850801,-490.0,0.00016438,2]
[366439120,1750255850810,-490.0,0.00016438,2]
[366439121,1750255850820,-578.52,0.00016438,2]
[366439122,1750255850830,-490.0,0.00016438,2]
[366439123,1750255850840,-490.0,0.00016438,2]
[366439124,1750255850850,-1535.91,0.00016438,2]
[366439125,1750255850860,-661.77,0.00016438,2]
[366439126,1750255850870,-490.0,0.00016438,2]
[366439127,1750255850880,-490.0,0.00016438,2]
[366439128,1750255850891,-935.13,0.00016438,2]
[366439129,1750255850901,-1954.74,0.00016438,2]
[366439130,1750255850911,-630.6,0.00016438,2]
[366439131,1750255850921,-490.0,0.00016438,2]
[366439132,1750255850930,-490.0,0.00016438,2]
[366439133,1750255850940,-1187.57,0.00016438,2]
[366439134,1750255850950,-570.0,0.00016438,2]
[366439135,1750255850959,-749.69,0.00016438,2]
[366439136,1750255850969,-597.79,0.00016438,2]
[366439137,1750255850978,-490.0,0.00016438,2]
[366439138,1750255850989,-493.83,0.00016438,2]
[366439139,1750255850999,-1381.31,0.00016438,2]
[366439140,1750255851009,-1863.99,0.00016438,2]
[366439141,1750255851018,-490.0,0.00016438,2]
[366439142,1750255851030,-538.89,0.00016438,2]
[366439143,1750255851043,-490.0,0.00016438,2]
[366439144,1750255851053,-550.08,0.00016438,2]
[366439145,1750255851062,-648.63,0.00016438,2]
[366439146,1750255851072,-1921.9,0.00016438,2]
[366439147,1750255851084,-490.0,0.00016438,2]
[366439148,1750255851094,-506.17,0.00016438,2]
[366439149,1750255851103,-530.53,0.00016438,2]
[366439150,1750255851113,-490.0,0.00016438,2]
[366439151,1750255851122,-577.48,0.00016438,2]
[366439152,1750255851133,-1033.35,0.00016438,2]
[366439153,1750255851143,-1087.21,0.00016438,2]
[366439154,1750255851153,-490.0,0.00016438,2]
[366439155,1750255851163,-1341.9,0.00016438,2]
[366439156,1750255851173,-491.34,0.00016438,2]
[366439157,1750255851183,-500.0,0.00016438,2]
[366439158,1750255851192,-500.0,0.00016438,2]
[366439159,1750255851202,-500.0,0.00016438,2]
[366439160,1750255851212,-490.0,0.00016438,2]
[366439161,1750255851223,-490.0,0.00016438,2]
[366439162,1750255851233,-1300.2,0.00016438,2]
[366439163,1750255851243,-500.0,0.00016438,2]
[366439164,1750255851253,-490.0,0.00016438,2]
[366439165,1750255851263,-490.0,0.00016438,2]
[366439166,1750255851274,-500.0,0.00016438,2]
[366439167,1750255851285,-535.19,0.00016438,2]
[366439168,1750255851295,-490.0,0.00016438,2]
[366439169,1750255851305,-783.41,0.00016438,2]
[366439170,1750255851315,-671.68,0.00016438,2]
[366439171,1750255851325,-544.57,0.00016438,2]
[366439172,1750255851572,-1482.1,0.00016438,2]
[366439173,1750255851582,-1085.02,0.00016438,2]
[366439174,1750255851592,-1706.22,0.00016438,2]
[366439175,1750255851602,-490.0,0.00016438,2]
[366439176,1750255851612,-490.0,0.00016438,2]
[366439177,1750255851622,-490.0,0.00016438,2]
[366439178,1750255851632,-490.0,0.00016438,2]
[366439179,1750255851642,-490.0,0.00016438,2]
[366439180,1750255851652,-518.81,0.00016438,2]
[366439181,1750255851662,-1005.21,0.00016438,2]
[366439182,1750255851672,-647.47,0.00016438,2]
[366439183,1750255851682,-493.16893536,0.00016438,2]
[366439184,1750255851692,-490.0,0.00016438,2]
[366439185,1750255851702,-490.0,0.00016438,2]
[366439186,1750255851713,-490.0,0.00016438,2]
[366439187,1750255851724,-626.01,0.00016438,2]
[366439188,1750255851734,-509.1,0.00016438,2]
[366439189,1750255851744,-490.0,0.00016438,2]
[366439190,1750255851755,-648.01,0.00016438,2]
[366439191,1750255851766,-490.0,0.00016438,2]
[366439192,1750255851779,-2402.02,0.00016438,2]
[366439193,1750255851790,-928.26,0.00016438,2]
[366439194,1750255851801,-513.3,0.00016438,2]
[366439195,1750255851812,-649.49,0.00016438,2]
[366439196,1750255851823,-490.0,0.00016438,2]
[366439197,1750255851834,-674.59,0.00016438,2]
[366439198,1750255851845,-1616.41,0.00016438,2]
[366439199,1750255851857,-1531.52,0.00016438,2]
[366439200,1750255851868,-495.38,0.00016438,2]
[366439201,1750255851879,-490.0,0.00016438,2]
[366439202,1750255851889,-733.18,0.00016438,2]
[366439203,1750255851900,-1196.85,0.00016438,2]
[366439204,1750255851910,-1149.64,0.00016438,2]
[366439205,1750255851920,-554.15678274,0.00016438,2]
[366439206,1750255851931,-1165.79,0.00016438,2]
[366439207,1750255851942,-1005.6,0.00016438,2]
[366439208,1750255851952,-834.76,0.00016438,2]
[366439209,1750255851962,-490.0,0.00016438,2]
[366439210,1750255851972,-490.0,0.00016438,2]
[366439211,1750255851982,-490.0,0.00016438,2]
[366439212,1750255851993,-1616.61,0.00016438,2]
[366439213,1750255852004,-2373.27,0.00016438,2]
[366439214,1750255852014,-1122.63,0.00016438,2]
[366439215,1750255852025,-490.0,0.00016438,2]
[366439216,1750255852042,-490.0,0.00016438,2]
[366439217,1750255852056,-607.03,0.00016438,2]
[366439218,1750255852067,-1343.28,0.00016438,2]
[366439219,1750255852077,-490.0,0.00016438,2]
[366439220,1750255852088,-543.19,0.00016438,2]
[366439221,1750255852098,-490.0,0.00016438,2]
[366439222,1750255852108,-1084.41,0.00016438,2]
[366439223,1750255852118,-490.0,0.00016438,2]
[366439224,1750255852128,-551.55,0.00016438,2]
[366439225,1750255852138,-490.0,0.00016438,2]
[366439226,1750255852148,-490.0,0.00016438,2]
[366439227,1750255852158,-490.0,0.00016438,2]
[366439228,1750255852168,-648.29,0.00016438,2]
[366439229,1750255852178,-1040.38,0.00016438,2]
[366439230,1750255852188,-1630.3,0.00016438,2]
[366439231,1750255852198,-692.05,0.00016438,2]
[366439232,1750255852209,-509.1,0.00016438,2]
[366439233,1750255852219,-490.0,0.00016438,2]
[366439234,1750255852229,-490.0,0.00016438,2]
[366439235,1750255852238,-2331.01,0.00016438,2]
[366439236,1750255852248,-1555.29,0.00016438,2]
[366439237,1750255852258,-490.0,0.00016438,2]
[366439238,1750255852268,-5575.15,0.00016438,2]
[366439239,1750255852277,-602.3,0.00016438,2]
[366439240,1750255852288,-490.0,0.00016438,2]
[366439241,1750255852297,-490.0,0.00016438,2]
[366439242,1750255852307,-490.0,0.00016438,2]
[366439243,1750255852316,-218.40447942,0.00016438,2]
[366439244,1750255852823,-1153.82552058,0.00016438,2]
[366439245,1750255852833,-955.92846648,0.00016438,2]
[366439246,1750255852844,-79.97153352,0.00016438,2]
[366439247,1750255852854,-1590.99,0.00016438,2]
[366439248,1750255852864,-1574.96,0.00016438,2]
[366439249,1750255852874,-16.70476398,0.00016438,2]
[366439250,1750255852886,-1000.0,0.00016438,2]
[366439251,1750255852937,-476.0207654,0.00016438,2]
[366439252,1750255852949,-811.9000005,0.00016438,2]
[366439253,1750255852961,-635.716992,0.00016438,2]
[366439254,1750255852972,-655.65,0.00016438,2]
[366439255,1750255852984,-857.8,0.00016438,2]
[366439256,1750255852996,-1727.76850292,0.00016438,2]
[366439257,1750255853012,-520.7674253,0.00016438,2]
[366439258,1750255853024,-1331.2015499,0.00016438,2]
[366439259,1750255853037,-380.66903033,0.00016438,2]
[366439260,1750255853050,-109.33096967,0.00016438,2]
[366439261,1750255853063,-2144.936954,0.00016438,2]
[366439262,1750255853073,-490.0,0.00016438,2]
[366439263,1750255853083,-1556.56249359,0.00016438,2]
[366439264,1750255853103,-213.73750641,0.00016438,2]
[366439265,1750255853113,-619.25349312,0.00016438,2]
[366439266,1750255853125,-714.41650688,0.00016438,2]
[366439267,1750255853136,-1229.62,0.00016438,2]
[366439268,1750255853146,-490.0,0.00016438,2]
[366439269,1750255853158,-818.82,0.00016438,2]
[366439270,1750255853167,-757.74,0.00016438,2]
[366439271,1750255853177,-512.17,0.00016438,2]
[366439272,1750255853187,-2048.91112653,0.00016438,2]
[366439273,1750255853310,-685.15887347,0.00016438,2]
[366439274,1750255853320,-490.0,0.00016438,2]
[366439275,1750255853330,-707.74,0.00016438,2]
[366439276,1750255853340,-490.0,0.00016438,2]
[366439277,1750255853350,-1557.54095729,0.00016438,2]
[366439278,1750255853362,-511.49904271,0.00016438,2]
[366439279,1750255853373,-223.62095729,0.00016438,2]
[366439280,1750255853452,-388.79904271,0.00016438,2]
[366439281,1750255853462,-1978.20735757,0.00016438,2]
[366439282,1750255853479,-454.20749541,0.00016438,2]
[366439286,1750256062156,400.0,0.00024657,120]
[366439287,1750256065498,191.32,0.00012269,2]
[366439288,1750256072155,313.84,0.00024658,120]
[366439289,1750256207237,500.0,0.0002465,120]
[366439290,1750256213026,275.0,0.0002465,120]
[366439291,1750256214080,500.0,0.0002465,120]
[366439292,1750256215235,1050.0,0.0002465,120]
[366439293,1750256216051,699.0,0.0002465,120]
[366439294,1750256221686,500.0,0.0002465,120]
[366439295,1750256228398,500.0,0.0002465,120]
[366439296,1750256251932,589.397749,0.0002465,120]
[366439297,1750256273484,1114.33071326,0.0002465,120]
[366439298,1750256276579,337.49931934,0.0002465,120]
[366439375,1750256344885,156.24575774,0.00024657,120]
[366439379,1750256541878,500.0,0.00024657,120]
[366439380,1750256548401,500.0,0.00024657,120]
[366439381,1750256555431,500.0,0.00024657,120]
[366439382,1750256572282,500.0,0.00024657,120]
[366439383,1750256593848,776.0,0.00024657,120]
[366439384,1750256596458,505.0,0.00024649,120]
[366439391,1750256714027,-182.68,0.00013699,2]
[366439392,1750256714053,-205.0,0.00013734,2]
[366439393,1750256721501,4479.9818975,9e-05,2]
[366439397,1750256737585,28886.76934645,9e-05,2]
[366439401,1750256801472,203.0,0.00013734,2]
[366439402,1750256842808,3129.78915818,0.0001305,2]
[366439403,1750256867922,281.43117643,0.00024658,120]